bitfinex/quotes_SOLUSD_20220113
["timestamp","ask_amount","ask_price","bid_price","bid_amount"]
[1642097622568,14.86667566,151.0,150.92,10.1871]
[1642097622769,81.25667566,151.0,150.92,10.1871]
[1642097622969,87.25667566,151.0,150.92,10.1871]
[1642097623872,87.50667566,151.0,150.92,10.1871]
[1642097625070,87.50667566,151.0,150.92,9.9371]
[1642097625270,87.50667566,151.0,150.91,9.938]
[1642097625271,66.39,150.98,150.91,9.938]
[1642097625471,72.64,150.98,150.9,23.6385]
[1642097625671,72.64,150.98,150.9,23.8885]
[1642097626477,72.64,150.98,150.9,23.6385]
[1642097626873,72.64,150.98,150.88,2.649]
[1642097627074,2.65,150.97,150.88,2.649]
[1642097627275,66.39,150.96,150.88,2.649]
[1642097627475,66.39,150.94,150.88,2.649]
[1642097627675,2.65,150.95,150.87,23.2482]
[1642097627877,6.25,150.94,150.87,23.2482]
[1642097628376,6.25,150.94,150.88,9.94]
[1642097628612,6.25,150.94,150.88,10.19]
[1642097629279,0.25,150.94,150.88,10.19]
[1642097629478,72.64,150.96,150.88,10.19]
[1642097632282,72.64,150.96,150.88,9.94]
[1642097632483,72.64,150.96,150.87,23.2482]
[1642097632681,2.65,150.95,150.87,23.2482]
[1642097633083,66.39,150.94,150.87,23.2482]
[1642097633483,81.62144497,150.93,150.87,23.2482]
[1642097633682,81.62144497,150.93,150.85,23.6537]
[1642097633882,87.87144497,150.93,150.86,0.25]
[1642097634087,87.87144497,150.93,150.85,23.9037]
[1642097634984,66.64,150.93,150.85,23.9037]
[1642097635185,66.64,150.93,150.86,9.9414]
[1642097635386,66.64,150.93,150.87,2.65]
[1642097635587,66.64,150.93,150.87,2.9]
[1642097636413,66.64,150.93,150.87,2.65]
[1642097636612,2.65,150.92,150.87,2.65]
[1642097637011,2.9,150.92,150.87,2.65]
[1642097637213,0.25,150.92,150.87,2.65]
[1642097638011,6.084,150.93,150.87,2.65]
[1642097638212,14.14282051,150.91,150.87,2.65]
[1642097638511,0.25,150.91,150.87,2.65]
[1642097639714,15.39091156,150.96,150.87,2.65]
[1642097639912,2.65,150.95,150.84,22.5869]
[1642097640112,2.65,150.95,150.84,22.8369]
[1642097640313,8.9,150.95,150.84,22.8369]
[1642097640715,8.9,150.95,150.84,24.48689521]
[1642097640918,2.65,150.95,150.85,9.61]
[1642097641115,24.325,150.99,150.86,2.65]
[1642097641318,2.65,151.01,150.89,9.9389]
[1642097641515,2.65,151.01,150.89,19.7989]
[1642097641720,2.65,151.01,150.89,21.44889521]
[1642097641917,2.65,151.01,150.9,10.05326243]
[1642097642119,66.39,151.02,150.9,19.91326243]
[1642097642317,66.39,151.02,150.95,9.935]
[1642097643116,2.649,151.03,150.95,10.185]
[1642097643317,16.42359663,151.04,150.96,12.5837]
[1642097643518,25.07259663,151.04,150.93,48.2883]
[1642097643719,25.07259663,151.04,150.93,55.2493]
[1642097644019,66.39,151.03,150.93,55.4993]
[1642097644221,66.39,151.03,150.94,2.649]
[1642097644422,72.39,151.03,150.94,12.5846]
[1642097644620,72.39,151.03,150.94,12.8346]
[1642097645219,6.0,151.03,150.94,12.8346]
[1642097645622,2.649,151.07,150.95,9.61]
[1642097645821,2.648,151.09,150.96,2.648]
[1642097646022,2.648,151.09,150.99,9.9325]
[1642097646223,2.648,151.1,150.98,22.5984]
[1642097646422,19.1707512,151.09,150.98,22.5984]
[1642097646621,2.648,151.08,150.98,22.5984]
[1642097646825,66.39,151.07,150.98,32.2084]
[1642097647022,69.038,151.06,150.98,32.2084]
[1642097647223,66.39,151.06,150.98,32.2084]
[1642097647623,2.648,151.05,150.98,32.2084]
[1642097648023,2.898,151.05,150.98,32.2084]
[1642097648223,6.25,151.05,150.98,32.2084]
[1642097648623,0.25,151.05,150.98,32.2084]
[1642097648822,0.25,151.05,150.98,32.4584]
[1642097649026,2.898,151.08,150.98,32.4584]
[1642097649327,0.25,151.08,150.99,2.648]
[1642097649525,25.4207512,151.09,151.0,9.9316]
[1642097649723,19.4207512,151.09,151.0,9.9316]
[1642097650325,66.39,151.08,151.0,9.9316]
[1642097652034,19.1707512,151.09,151.0,10.1816]
[1642097652227,91.5607512,151.09,151.0,10.1816]
[1642097653127,91.5607512,151.09,151.0,16.1816]
[1642097653326,91.5607512,151.09,151.0,10.1816]
[1642097653528,25.1707512,151.09,151.0,16.1816]
[1642097654128,25.1707512,151.09,151.0,16.2016]
[1642097654329,91.5607512,151.09,151.0,16.2016]
[1642097654729,25.4207512,151.09,151.01,9.61]
[1642097654930,25.4207512,151.09,151.03,9.93]
[1642097655330,6.25,151.09,151.03,9.93]
[1642097655530,0.25,151.09,151.03,9.93]
[1642097655829,72.64,151.1,151.03,9.93]
[1642097656631,72.64,151.1,151.03,8.93]
[1642097657833,72.64,151.1,151.01,12.256]
[1642097658034,2.648,151.09,151.0,0.02]
[1642097658534,66.39,151.08,151.0,0.02]
[1642097658735,19.9214769,151.07,151.0,0.02]
[1642097659134,66.39,151.06,151.0,0.02]
[1642097659336,66.39,151.06,151.01,0.02]
[1642097659536,66.64,151.06,151.01,0.02]
[1642097661437,66.39,151.04,151.01,0.02]
[1642097661636,2.648,151.03,151.01,0.02]
[1642097662035,66.39,151.02,151.01,0.02]
[1642097662468,72.64,151.02,151.01,0.02]
[1642097664670,14.81672155,151.01,150.93,32.2368]
[1642097664867,14.81672155,151.01,150.93,22.6268]
[1642097665070,21.06672155,151.01,150.93,22.6268]
[1642097665268,21.06672155,151.01,150.93,9.9367]
[1642097665468,28.75872155,151.01,150.91,2.648]
[1642097665667,66.39,151.0,150.87,18.63271386]
[1642097665868,66.39,151.0,150.88,23.3127]
[1642097666068,2.65,150.99,150.88,23.3127]
[1642097666469,8.9,150.99,150.89,9.9389]
[1642097666669,8.65,150.99,150.89,9.9389]
[1642097666873,14.81672155,151.01,150.9,2.65]
[1642097667068,20.81672155,151.01,150.9,27.6821]
[1642097667470,20.81672155,151.01,150.91,9.61]
[1642097667673,20.81672155,151.01,150.92,9.0997218]
[1642097668076,21.06672155,151.01,150.92,9.0997218]
[1642097668272,21.06672155,151.01,150.94,9.9362]
[1642097668472,6.25,151.01,150.94,9.9362]
[1642097669373,25.43620528,151.01,150.94,9.9362]
[1642097669578,28.08520528,151.01,150.94,9.9362]
[1642097671381,66.39,151.0,150.94,9.9362]
[1642097671577,72.64,151.0,150.94,9.9362]
[1642097673184,6.25,151.0,150.94,9.9362]
[1642097673384,0.25,151.0,150.94,9.9362]
[1642097673578,0.25,151.01,150.94,9.9362]
[1642097673978,75.289,151.03,150.94,9.9362]
[1642097675981,8.899,151.03,150.94,9.9362]
[1642097676182,2.899,151.03,150.94,9.9362]
[1642097676382,2.719,151.08,150.95,12.259]
[1642097676582,2.649,151.08,151.01,9.9316]
[1642097676786,2.648,151.09,151.01,9.9316]
[1642097676983,2.648,151.13,151.02,2.648]
[1642097677183,2.648,151.13,151.03,5.49312003]
[1642097677582,69.038,151.13,151.03,5.49312003]
[1642097677782,69.038,151.13,151.02,27.3338]
[1642097677982,75.038,151.13,151.02,33.5838]
[1642097678183,75.038,151.13,151.04,9.9292]
[1642097678583,75.288,151.13,151.04,9.9292]
[1642097679485,75.038,151.13,151.04,9.9292]
[1642097680890,2.648,151.13,151.04,9.9292]
[1642097681113,2.646,151.15,151.09,9.9263]
[1642097681286,2.646,151.16,151.09,9.9263]
[1642097681487,2.646,151.19,151.09,9.9263]
[1642097681886,17.31596164,151.18,151.09,9.9263]
[1642097682087,2.646,151.17,151.09,9.9263]
[1642097682488,8.896,151.17,151.09,9.9263]
[1642097683391,7.45225356,151.16,151.09,9.9263]
[1642097683587,13.45225356,151.16,151.09,9.9263]
[1642097683988,7.45225356,151.16,151.09,9.9263]
[1642097684389,3.72612678,151.16,151.09,8.27099973]
[1642097684590,3.97612678,151.16,151.09,8.27099973]
[1642097685391,9.97612678,151.16,151.09,8.27099973]
[1642097687193,3.97612678,151.16,151.09,8.27099973]
[1642097687794,9.97612678,151.16,151.09,8.27099973]
[1642097690125,6.25,151.16,151.09,8.27099973]
[1642097690526,72.64,151.16,151.09,8.27099973]
[1642097691029,76.36612678,151.16,151.09,8.27099973]
[1642097693129,3.97612678,151.16,151.09,17.88099973]
[1642097693330,3.72612678,151.16,151.09,18.13099973]
[1642097693532,3.72612678,151.16,151.09,24.13099973]
[1642097693932,3.72612678,151.18,151.09,24.13099973]
[1642097694432,3.72612678,151.18,151.09,24.39099973]
[1642097694831,7.5184002,151.21,151.09,24.39099973]
[1642097695031,13.5184002,151.21,151.1,2.646]
[1642097695231,13.5184002,151.21,151.15,9.9216]
[1642097696036,9.97612678,151.21,151.15,9.9216]
[1642097697232,3.97612678,151.21,151.15,9.9216]
[1642097697434,9.97612678,151.21,151.15,9.9216]
[1642097697633,3.97612678,151.21,151.15,9.9216]
[1642097697833,9.97612678,151.21,151.15,9.9216]
[1642097698235,3.97612678,151.21,151.15,9.9216]
[1642097698637,3.97612678,151.21,151.15,19.5316]
[1642097698840,2.646,151.23,151.15,19.5316]
[1642097699036,5.68274092,151.24,151.2,9.9178]
[1642097700339,3.79112574,151.27,151.2,9.9178]
[1642097700540,4.04112574,151.27,151.2,9.9178]
[1642097701144,3.79112574,151.27,151.2,9.9178]
[1642097701539,3.79112574,151.26,151.2,9.9178]
[1642097701941,2.644,151.25,151.19,9.9196]
[1642097702140,69.034,151.25,151.19,9.9196]
[1642097702340,75.034,151.25,151.15,33.6126]
[1642097702540,75.284,151.25,151.15,33.6126]
[1642097702742,72.64,151.25,151.15,66.6777]
[1642097702941,72.64,151.25,151.18,9.9202]
[1642097703344,3.79112574,151.24,151.18,9.9202]
[1642097703543,10.04112574,151.24,151.18,9.9202]
[1642097703747,4.04112574,151.24,151.18,9.9202]
[1642097703944,4.04112574,151.24,151.19,9.61]
[1642097704144,2.645,151.28,151.23,9.9163]
[1642097704947,8.645,151.28,151.23,9.9163]
[1642097705147,14.13282495,151.27,151.21,9.61]
[1642097705347,14.13282495,151.27,151.22,9.9175]
[1642097705547,14.13282495,151.27,151.18,8.644]
[1642097705548,20.13282495,151.27,151.18,9.61]
[1642097705749,91.64582495,151.27,151.18,9.61]
[1642097705948,25.25582495,151.27,151.18,9.61]
[1642097706149,35.17542495,151.27,151.18,9.61]
[1642097706549,35.42542495,151.27,151.18,9.61]
[1642097707150,35.42542495,151.27,151.18,19.5301]
[1642097707375,101.81542495,151.27,151.18,19.5301]
[1642097707578,101.81542495,151.27,151.18,9.61]
[1642097707774,2.645,151.26,151.18,9.61]
[1642097707975,9.9218,151.24,151.16,25.4247]
[1642097708176,2.645,151.23,151.16,25.4247]
[1642097708374,2.645,151.23,151.16,35.3462]
[1642097708575,8.895,151.23,151.16,35.3462]
[1642097709376,0.25,151.23,151.16,35.3462]
[1642097709677,6.25,151.24,151.16,35.5962]
[1642097709876,0.25,151.24,151.16,35.5962]
[1642097710175,6.0,151.24,151.16,35.3462]
[1642097710376,6.0,151.24,151.16,35.5962]
[1642097710579,1.89564291,151.22,151.16,35.5962]
[1642097710777,17.00927797,151.21,151.16,35.5962]
[1642097710977,17.00927797,151.21,151.16,10.1715]
[1642097711379,18.90492088,151.21,151.16,10.1715]
[1642097711779,1.89564291,151.21,151.16,10.1715]
[1642097712379,1.89564291,151.21,151.17,9.61]
[1642097712580,1.89564291,151.21,151.19,9.918]
[1642097712780,1.89564291,151.21,151.2,6.06439993]
[1642097713381,1.89564291,151.22,151.2,6.06439993]
[1642097714280,1.89564291,151.23,151.2,15.98239993]
[1642097714480,1.89564291,151.23,151.2,16.23239993]
[1642097714682,1.89564291,151.23,151.21,9.61]
[1642097714882,5.68274092,151.3,151.22,30.0]
[1642097715082,5.68274092,151.3,151.23,9.61]
[1642097715281,5.68274092,151.3,151.26,9.9143]
[1642097715482,5.68274092,151.3,151.26,10.1643]
[1642097715690,5.68274092,151.3,151.26,19.7743]
[1642097716183,5.68274092,151.3,151.26,22.4183]
[1642097716585,5.68274092,151.34,151.26,28.4183]
[1642097717082,11.93274092,151.34,151.26,28.4183]
[1642097717284,5.93274092,151.34,151.26,28.4183]
[1642097717884,5.93274092,151.34,151.26,25.7743]
[1642097718088,5.68274092,151.34,151.26,25.7743]
[1642097719485,5.93274092,151.34,151.26,19.7743]
[1642097719686,0.25,151.34,151.26,19.7743]
[1642097719888,32.81261257,151.36,151.26,19.7743]
[1642097720088,32.81261257,151.36,151.27,2.642]
[1642097720288,32.81261257,151.36,151.27,12.252]
[1642097720489,32.81261257,151.36,151.31,9.9117]
[1642097720790,30.16861257,151.36,151.31,9.9117]
[1642097721791,24.48587165,151.36,151.31,9.9117]
[1642097725596,23.98587165,151.36,151.31,9.9117]
[1642097726596,26.62787165,151.36,151.31,9.9117]
[1642097727598,23.98587165,151.36,151.31,9.9117]
[1642097730100,6.25,151.36,151.31,9.9117]
[1642097731000,19.89013436,151.36,151.31,9.9117]
[1642097731201,13.89013436,151.36,151.31,9.9117]
[1642097731403,19.89013436,151.36,151.31,9.9117]
[1642097731801,19.89013436,151.36,151.3,9.9123]
[1642097734104,19.89013436,151.36,151.3,9.3133]
[1642097734312,5.68274092,151.37,151.3,9.3133]
[1642097734508,5.68274092,151.37,151.3,25.1733]
[1642097735105,5.68274092,151.37,151.3,25.4333]
[1642097735407,5.68274092,151.37,151.31,85.25183031]
[1642097735605,5.68274092,151.37,151.34,9.906]
[1642097735805,5.68274092,151.37,151.35,24.12861533]
[1642097736004,5.68274092,151.4,151.35,30.37861533]
[1642097736205,5.68274092,151.4,151.35,27.73661533]
[1642097736805,5.68274092,151.4,151.35,21.92439993]
[1642097737207,5.68274092,151.4,151.36,9.9057]
[1642097737507,22.70005422,151.44,151.36,9.9057]
[1642097737906,95.09005422,151.44,151.36,9.9057]
[1642097738910,2.642,151.43,151.36,9.9057]
[1642097739108,8.892,151.43,151.35,9.61]
[1642097739308,8.892,151.43,151.34,9.9095]
[1642097739907,0.07,151.42,151.32,12.252]
[1642097740107,18.18801982,151.4,151.32,12.252]
[1642097740309,2.642,151.39,151.32,12.252]
[1642097740507,8.892,151.39,151.32,12.252]
[1642097740708,0.25,151.39,151.32,12.252]
[1642097740909,2.642,151.42,151.32,12.502]
[1642097741136,8.892,151.42,151.32,12.502]
[1642097741308,6.0,151.42,151.32,22.6728]
[1642097741509,11.68274092,151.44,151.32,22.6728]
[1642097741708,17.66825493,151.43,151.33,38.07658213]
[1642097741907,17.16825493,151.43,151.33,47.68658213]
[1642097742107,17.16825493,151.43,151.33,48.19658213]
[1642097742311,22.85099585,151.43,151.34,33.0235]
[1642097742607,20.95899585,151.43,151.34,0.25]
[1642097742809,2.642,151.42,151.33,34.4299]
[1642097743010,2.892,151.42,151.33,34.1799]
[1642097743409,18.8008,151.42,151.34,9.9096]
[1642097743608,12.8008,151.42,151.34,9.9096]
[1642097743815,18.8008,151.42,151.34,9.9096]
[1642097744412,18.8008,151.42,151.33,9.61]
[1642097744611,85.1908,151.42,151.33,9.61]
[1642097745213,85.1908,151.42,151.33,19.5203]
[1642097745413,18.8008,151.42,151.33,19.5203]
[1642097746614,24.48354092,151.42,151.33,19.5203]
[1642097749344,8.32474092,151.42,151.34,16.08574536]
[1642097749544,5.68274092,151.42,151.38,9.9065]
[1642097749949,5.68274092,151.42,151.38,19.7665]
[1642097750348,5.68274092,151.42,151.39,2.642]
[1642097750546,5.68274092,151.42,151.39,2.892]
[1642097750747,5.68274092,151.42,151.4,15.96759993]
[1642097751346,17.35183003,151.46,151.4,15.96759993]
[1642097751546,23.35183003,151.46,151.4,25.82759993]
[1642097752847,5.68274092,151.47,151.4,25.82759993]
[1642097753247,5.68274092,151.47,151.41,2.641]
[1642097753448,5.68274092,151.47,151.44,9.9022]
[1642097753648,5.68274092,151.47,151.45,6.06439993]
[1642097753849,6.0143977,151.49,151.45,6.06439993]
[1642097754048,6.2643977,151.49,151.45,6.06439993]
[1642097754249,6.0143977,151.49,151.45,6.06439993]
[1642097755053,6.0143977,151.49,151.46,9.9017]
[1642097755251,12.0143977,151.49,151.47,3.03219997]
[1642097755453,12.2643977,151.49,151.47,3.03219996]
[1642097755652,6.2643977,151.49,151.42,9.61]
[1642097755850,6.2643977,151.49,151.42,9.86]
[1642097756053,6.2643977,151.49,151.42,15.86]
[1642097756252,6.2643977,151.49,151.46,9.9014]
[1642097756452,6.2643977,151.49,151.47,3.03219997]
[1642097756651,6.2643977,151.49,151.47,6.06439993]
[1642097757253,6.2643977,151.49,151.48,9.8999]
[1642097757453,0.58165678,151.49,151.47,6.06439993]
[1642097757657,0.58165678,151.49,151.43,23.6863]
[1642097757854,0.33165678,151.49,151.43,33.2963]
[1642097758053,0.33165678,151.49,151.43,9.61]
[1642097758256,20.3377735,151.48,151.41,2.64]
[1642097758455,53.3610735,151.48,151.41,2.64]
[1642097758655,53.4310735,151.48,151.41,2.64]
[1642097758854,1.64999521,151.47,151.41,2.64]
[1642097759054,2.641,151.46,151.41,2.64]
[1642097759458,28.60893831,151.45,151.41,2.64]
[1642097759857,34.85893831,151.45,151.41,2.64]
[1642097760458,34.85893831,151.45,151.41,2.66]
[1642097761659,34.85893831,151.45,151.41,0.02]
[1642097761959,28.85893831,151.45,151.41,0.02]
[1642097762762,34.85893831,151.45,151.41,0.02]
[1642097762959,2.641,151.44,151.41,0.02]
[1642097763164,34.85893831,151.45,151.41,0.02]
[1642097763361,8.891,151.44,151.41,0.02]
[1642097763562,36.0,151.42,151.34,9.61]
[1642097763959,15.19385718,151.41,151.34,9.61]
[1642097764160,17.83585718,151.41,151.34,9.61]
[1642097764361,24.08585718,151.41,151.33,2.641]
[1642097764563,25.02255007,151.38,151.33,2.641]
[1642097765062,2.642,151.37,151.33,2.641]
[1642097765462,2.892,151.37,151.33,2.641]
[1642097765863,12.8037,151.37,151.33,2.641]
[1642097766265,0.25,151.37,151.3,24.5364]
[1642097766465,6.0,151.38,151.31,2.642]
[1642097766466,0.25,151.38,151.31,2.642]
[1642097766863,9.9108,151.38,151.31,2.642]
[1642097767064,16.1608,151.38,151.31,2.642]
[1642097768294,16.1608,151.38,151.31,12.553]
[1642097768697,18.8028,151.38,151.31,9.911]
[1642097769700,16.1608,151.38,151.31,9.911]
[1642097770697,8.892,151.38,151.31,9.911]
[1642097771301,6.25,151.38,151.31,9.911]
[1642097771499,0.25,151.38,151.31,9.911]
[1642097771698,6.25,151.38,151.31,9.911]
[1642097771900,6.0,151.38,151.31,9.911]
[1642097772101,6.25,151.38,151.31,9.911]
[1642097772303,0.25,151.38,151.31,9.911]
[1642097772500,6.25,151.38,151.31,9.911]
[1642097773501,0.25,151.38,151.31,9.911]
[1642097773703,6.25,151.38,151.31,9.911]
[1642097773900,6.0,151.38,151.31,15.911]
[1642097774100,6.25,151.38,151.31,15.911]
[1642097774301,0.25,151.38,151.31,9.911]
[1642097774504,2.642,151.39,151.35,9.908]
[1642097774702,29.77614092,151.42,151.35,9.908]
[1642097774903,5.68274092,151.42,151.35,9.908]
[1642097775303,5.68274092,151.42,151.35,27.30559917]
[1642097775505,2.642,151.45,151.35,27.30559917]
[1642097775703,2.642,151.45,151.4,9.905]
[1642097775907,5.68274092,151.46,151.4,19.515]
[1642097776103,5.68274092,151.46,151.41,2.641]
[1642097776505,6.0143977,151.49,151.41,2.641]
[1642097777303,6.0143977,151.49,151.43,9.9031]
[1642097777503,0.33165678,151.49,151.43,9.9031]
[1642097777904,0.33165678,151.49,151.4,35.3125]
[1642097777905,0.33165678,151.49,151.4,25.7025]
[1642097778107,0.33165678,151.49,151.38,9.61]
[1642097778108,2.641,151.48,151.38,9.61]
[1642097778307,9.9059,151.46,151.39,9.9059]
[1642097778506,13.58195803,151.45,151.39,9.9059]
[1642097779007,13.83195803,151.45,151.39,9.9059]
[1642097779811,16.47295803,151.45,151.39,9.9059]
[1642097780309,32.37915803,151.45,151.38,19.5164]
[1642097780908,98.76915803,151.45,151.38,9.61]
[1642097781109,98.76915803,151.45,151.35,2.641]
[1642097781309,98.76915803,151.45,151.34,32.9553]
[1642097781508,98.76915803,151.45,151.34,23.3453]
[1642097781707,98.83915803,151.45,151.34,23.3453]
[1642097781908,98.76915803,151.45,151.34,23.3453]
[1642097782209,98.76915803,151.45,151.35,9.9078]
[1642097782407,98.76915803,151.45,151.34,23.3453]
[1642097783709,0.07,151.43,151.32,9.61]
[1642097783908,9.911,151.38,151.32,9.61]
[1642097784109,15.911,151.38,151.32,9.61]
[1642097784308,16.161,151.38,151.32,9.61]
[1642097785910,6.25,151.38,151.32,9.61]
[1642097786112,0.25,151.38,151.32,9.61]
[1642097786314,92.42291821,151.4,151.32,9.61]
[1642097786513,89.78091821,151.4,151.32,9.61]
[1642097787113,89.78091821,151.4,151.32,19.5204]
[1642097787315,72.64,151.4,151.32,19.5204]
[1642097787514,6.25,151.4,151.32,19.7704]
[1642097787717,0.25,151.4,151.32,22.4124]
[1642097787915,30.11674092,151.43,151.32,28.4124]
[1642097788115,30.36674092,151.43,151.32,28.6724]
[1642097788317,30.36674092,151.43,151.33,15.68814212]
[1642097788516,5.93274092,151.43,151.34,12.252]
[1642097788716,5.93274092,151.43,151.37,9.9067]
[1642097789016,6.25,151.43,151.37,9.9067]
[1642097789423,0.25,151.43,151.37,9.9067]
[1642097789617,16.1574,151.43,151.37,9.9067]
[1642097789822,5.68274092,151.46,151.38,9.61]
[1642097790018,5.68274092,151.46,151.42,9.9029]
[1642097790418,5.68274092,151.46,151.42,10.1529]
[1642097791017,18.99071764,151.48,151.43,12.5441]
[1642097791617,18.99071764,151.48,151.41,2.641]
[1642097791819,19.24071764,151.48,151.4,9.61]
[1642097792017,25.24071764,151.48,151.4,9.61]
[1642097792317,34.89491764,151.48,151.4,19.765]
[1642097792517,34.89491764,151.48,151.4,19.515]
[1642097792717,101.28491764,151.48,151.4,19.515]
[1642097792918,2.641,151.47,151.36,34.8162]
[1642097793121,9.9069,151.44,151.36,35.1139]
[1642097793420,2.642,151.43,151.36,32.4729]
[1642097793670,6.25,151.44,151.36,32.4729]
[1642097793818,8.892,151.43,151.36,32.4729]
[1642097794419,18.7995,151.43,151.36,32.4729]
[1642097794622,22.58627522,151.43,151.36,32.4729]
[1642097795321,22.58627522,151.43,151.36,9.9077]
[1642097795521,18.7995,151.43,151.36,9.9077]
[1642097796122,8.892,151.43,151.36,9.9077]
[1642097796324,2.892,151.43,151.36,9.9077]
[1642097797325,0.25,151.43,151.36,19.5177]
[1642097797527,0.25,151.45,151.36,19.7777]
[1642097797727,2.641,151.44,151.36,19.7777]
[1642097798126,0.25,151.44,151.36,19.7777]
[1642097798327,2.642,151.43,151.36,19.7777]
[1642097798530,4.03645694,151.44,151.37,2.642]
[1642097798729,4.03645694,151.44,151.4,9.9047]
[1642097799232,0.25,151.44,151.4,9.9047]
[1642097799635,2.891,151.46,151.4,9.9047]
[1642097800035,19.24337378,151.46,151.4,9.9047]
[1642097800534,16.60237378,151.46,151.4,9.9047]
[1642097801465,22.60237378,151.46,151.4,9.9047]
[1642097801661,16.60237378,151.46,151.4,9.9047]
[1642097801861,22.60237378,151.46,151.4,9.9047]
[1642097802064,16.60237378,151.46,151.4,9.9047]
[1642097802362,0.25,151.46,151.4,9.9047]
[1642097802661,2.891,151.47,151.4,9.9047]
[1642097802861,0.25,151.47,151.4,9.9047]
[1642097803061,2.891,151.48,151.4,9.9047]
[1642097803262,18.46681883,151.47,151.4,9.9047]
[1642097803564,18.71681883,151.47,151.4,9.9047]
[1642097803963,24.71681883,151.47,151.4,9.9047]
[1642097804361,3.78600807,151.46,151.4,9.9047]
[1642097804561,10.03600807,151.46,151.4,8.70519203]
[1642097804763,10.03600807,151.46,151.39,9.9058]
[1642097805563,10.03614992,151.46,151.39,9.9058]
[1642097805964,19.94164992,151.46,151.39,9.9058]
[1642097806166,19.94164992,151.46,151.38,9.9064]
[1642097806366,16.04351569,151.44,151.38,9.9064]
[1642097806565,16.29351569,151.44,151.38,9.9064]
[1642097806767,22.29351569,151.44,151.38,9.9064]
[1642097808166,6.25,151.44,151.38,9.9064]
[1642097808368,0.25,151.44,151.38,9.9064]
[1642097808566,6.0,151.44,151.38,9.9064]
[1642097808769,6.25,151.44,151.38,9.9064]
[1642097808968,0.25,151.44,151.38,9.9064]
[1642097809168,6.25,151.44,151.38,9.9064]
[1642097809770,0.25,151.44,151.38,9.9064]
[1642097809969,21.01557819,151.45,151.38,9.9064]
[1642097810171,12.67714992,151.45,151.38,9.9064]
[1642097810371,6.67714992,151.45,151.38,9.9064]
[1642097811377,16.58314992,151.45,151.38,9.9064]
[1642097811572,13.94214992,151.45,151.38,9.9064]
[1642097811773,19.94214992,151.45,151.38,9.9064]
[1642097812404,13.94214992,151.45,151.38,9.9064]
[1642097812576,10.03614992,151.45,151.38,9.9064]
[1642097812875,4.03614992,151.45,151.38,9.9064]
[1642097815078,3.78614992,151.45,151.38,9.9064]
[1642097815280,3.78614992,151.45,151.39,9.61]
[1642097815579,3.78614992,151.45,151.42,9.9035]
[1642097815778,3.78614992,151.45,151.43,6.06439993]
[1642097816383,7.57213195,151.46,151.43,6.06439993]
[1642097816582,7.82213195,151.46,151.43,6.06439993]
[1642097817385,4.03614992,151.46,151.43,6.06439993]
[1642097817585,0.25,151.46,151.43,6.06439993]
[1642097817988,6.67714992,151.47,151.43,6.06439993]
[1642097818485,12.67714992,151.47,151.43,6.06439993]
[1642097818687,14.61906185,151.46,151.43,6.06439993]
[1642097818890,14.61906185,151.46,151.4,9.9044]
[1642097819088,18.65500506,151.46,151.4,9.9044]
[1642097819488,18.65500506,151.46,151.38,23.5236]
[1642097819914,18.65521177,151.46,151.38,23.5236]
[1642097820217,18.65521177,151.46,151.39,9.9054]
[1642097820415,24.65521177,151.46,151.39,9.9054]
[1642097821016,10.03614992,151.46,151.39,9.9054]
[1642097821214,4.03614992,151.46,151.39,9.9054]